fUST/lending_fUST_20240830
["ID","MTS","AMOUNT","RATE_DAILY","PERIOD"]
[336632121,1724983854586,-2207.85,0.00022739,5]
[336632122,1724983854595,-4413.6,0.00022739,5]
[336632123,1724983854604,-2474.75,0.00022739,5]
[336632124,1724983854613,-500.0,0.00022739,5]
[336632125,1724983854622,-150.0,0.00022751,2]
[336632126,1724983854632,-654.326935,0.00022812,2]
[336632127,1724983854642,-500.0,0.00022877,2]
[336632128,1724983854651,-695.387899,0.00022961,2]
[336632129,1724983854660,-3192.4900869,0.00023,3]
[336632130,1724983854670,-200.0,0.00023,2]
[336632131,1724983854679,-500.0,0.00023013,5]
[336632132,1724983854689,-500.0,0.00023013,5]
[336632133,1724983854698,-500.0,0.00023013,5]
[336632134,1724983854707,-829.52,0.00023013,5]
[336632135,1724983854716,-500.0,0.00023013,5]
[336632136,1724983854725,-543.82325974,0.00023013,5]
[336632137,1724983854734,-718.95,0.00023013,5]
[336632138,1724983854743,-500.0,0.00023013,5]
[336632139,1724983854753,-500.0,0.00023013,5]
[336632140,1724983854763,-624.21,0.00023013,5]
[336632141,1724983854773,-500.0,0.00023013,5]
[336632142,1724983854782,-811.43,0.00023013,5]
[336632143,1724983854791,-650.46,0.00023013,5]
[336632144,1724983854802,-674.29,0.00023013,5]
[336632145,1724983854811,-500.0,0.00023013,5]
[336632146,1724983854820,-2372.91,0.00023013,5]
[336632147,1724983854829,-7565.24,0.00023013,5]
[336632148,1724983854839,-544.68,0.00023013,5]
[336632149,1724983854848,-2711.47,0.00023013,5]
[336632150,1724983854858,-1810.15,0.00023013,5]
[336632151,1724983854868,-500.0,0.00023013,5]
[336632152,1724983854879,-500.0,0.00023013,5]
[336632153,1724983854888,-596.7,0.00023013,5]
[336632154,1724983854899,-732.32,0.00023013,5]
[336632155,1724983854908,-1028.9,0.00023013,5]
[336632156,1724983854919,-528.46,0.00023013,5]
[336632157,1724983854930,-500.0,0.00023013,5]
[336632158,1724983854940,-584.53,0.00023013,5]
[336632159,1724983854951,-558.86,0.00023013,5]
[336632160,1724983854962,-500.0,0.00023013,5]
[336632161,1724983854972,-1600.8,0.00023013,5]
[336632162,1724983854983,-514.67,0.00023013,5]
[336632163,1724983854993,-722.8,0.00023013,5]
[336632164,1724983855006,-500.0,0.00023013,5]
[336632165,1724983855017,-500.0,0.00023013,5]
[336632166,1724983855027,-749.96,0.00023013,5]
[336632167,1724983855039,-2514.20382601,0.00023013,5]
[336632168,1724983855092,-422.70617399,0.00023013,5]
[336632169,1724983855103,-500.0,0.00023013,5]
[336632170,1724983855115,-538.9,0.00023013,5]
[336632171,1724983855125,-86.33928164,0.00023013,5]
[336632172,1724983855143,-2850.78552083,0.00023013,5]
[336632173,1724983855195,-500.0,0.00019178,2]
[336632174,1724983855207,-500.0,0.00019178,2]
[336632175,1724983855217,-500.0,0.00019452,2]
[336632176,1724983855227,-500.0,0.00019452,2]
[336632177,1724983855238,-377.10118025,0.00019726,2]
[336632178,1724983855247,-500.0,0.00019726,2]
[336632179,1724983855257,-500.0,0.0002,2]
[336632180,1724983855267,-1669.86519753,0.00023013,5]
[336632181,1724983855277,-151.0,0.00023013,7]
[336632182,1724983855287,-1984.15,0.00023013,5]
[336632183,1724983855299,-500.0,0.00023013,5]
[336632184,1724983855309,-500.0,0.00023013,5]
[336632185,1724983855319,-636.04,0.00023013,5]
[336632186,1724983855328,-1566.77,0.00023013,5]
[336632187,1724983855337,-517.98,0.00023013,5]
[336632188,1724983855347,-500.0,0.00023013,5]
[336632189,1724983855357,-1831.81,0.00023013,5]
[336632190,1724983855367,-1072.33,0.00023013,5]
[336632191,1724983855376,-542.43,0.00023013,5]
[336632192,1724983855387,-1282.53,0.00023013,5]
[336632193,1724983855397,-743.43,0.00023013,5]
[336632194,1724983855408,-1221.57,0.00023013,5]
[336632195,1724983855419,-1461.81,0.00023013,5]
[336632196,1724983855429,-2207.85,0.00023013,5]
[336632197,1724983855439,-4413.6,0.00023013,5]
[336632198,1724983855448,-2474.75,0.00023013,5]
[336632199,1724983855459,-500.0,0.00023013,5]
[336632200,1724983855468,-502.76233625,0.00023068,2]
[336632201,1724983855478,-654.326935,0.0002309,2]
[336632202,1724983855488,-251.3735348,0.00023151,2]
[336632203,1724983855499,-500.0,0.00023179,2]
[336632204,1724983855508,-800.0,0.0002319,2]
[336632205,1724983855519,-1055.64,0.000232,7]
[336632206,1724983855529,-600.0,0.0002328,2]
[336632207,1724983855537,-500.0,0.00023287,5]
[336632208,1724983855547,-500.0,0.00023287,5]
[336632209,1724983855556,-500.0,0.00023287,5]
[336632210,1724983855567,-829.52,0.00023287,5]
[336632211,1724983855576,-500.0,0.00023287,5]
[336632212,1724983855586,-718.95,0.00023287,5]
[336632213,1724983855595,-500.0,0.00023287,5]
[336632214,1724983855604,-500.0,0.00023287,5]
[336632215,1724983855614,-624.21,0.00023287,5]
[336632216,1724983855625,-498.06926421,0.00023287,5]
[336632217,1724983855635,-811.43,0.00023287,5]
[336632218,1724983855644,-650.46,0.00023287,5]
[336632219,1724983855654,-674.29,0.00023287,5]
[336632220,1724983855664,-500.0,0.00023287,5]
[336632221,1724983855673,-1305.46364805,0.00023287,5]
[336632222,1724983855863,-500.0,0.00020273,2]
[336632223,1724983855874,-278.77816216,0.00023287,5]
[336632224,1724983855997,-500.0,0.00019178,2]
[336632225,1724983856007,-500.0,0.00019452,2]
[336632226,1724983856016,-500.0,0.00019726,2]
[336632227,1724983856026,-500.0,0.0002,2]
[336632228,1724983856035,-504.3134585,0.00020273,2]
[336632229,1724983856045,-500.0,0.00020547,2]
[336632230,1724983856055,-500.0,0.00020821,2]
[336632231,1724983856065,-500.0,0.00021095,2]
[336632232,1724983856075,-500.0,0.00021369,2]
[336632233,1724983856084,-500.0,0.00021643,2]
[336632234,1724983856094,-500.0,0.00021917,2]
[336632235,1724983856103,-500.0,0.00022191,5]
[336632236,1724983856113,-500.0,0.00022465,5]
[336632237,1724983856122,-500.0,0.00022739,5]
[336632238,1724983856133,-500.0,0.00023013,5]
[336632239,1724983856143,-788.66818979,0.00023287,5]
[336632240,1724983856153,-7565.24,0.00023287,5]
[336632241,1724983856162,-544.68,0.00023287,5]
[336632242,1724983856172,-2711.47,0.00023287,5]
[336632243,1724983856182,-1810.15,0.00023287,5]
[336632244,1724983856192,-500.0,0.00023287,5]
[336632245,1724983856201,-500.0,0.00023287,5]
[336632246,1724983856211,-596.7,0.00023287,5]
[336632247,1724983856220,-732.32,0.00023287,5]
[336632248,1724983856230,-1028.9,0.00023287,5]
[336632249,1724983856240,-528.46,0.00023287,5]
[336632250,1724983856250,-500.0,0.00023287,5]
[336632251,1724983856259,-584.53,0.00023287,5]
[336632252,1724983856268,-558.86,0.00023287,5]
[336632253,1724983856278,-500.0,0.00023287,5]
[336632254,1724983856288,-1600.8,0.00023287,5]
[336632255,1724983856298,-514.67,0.00023287,5]
[336632256,1724983856317,-722.8,0.00023287,5]
[336632257,1724983856327,-500.0,0.00023287,5]
[336632258,1724983856336,-500.0,0.00023287,5]
[336632259,1724983856345,-749.96,0.00023287,5]
[336632260,1724983856355,-2936.91,0.00023287,5]
[336632261,1724983856364,-500.0,0.00023287,5]
[336632262,1724983856374,-538.9,0.00023287,5]
[336632263,1724983856384,-4606.99,0.00023287,5]
[336632264,1724983856394,-1984.15,0.00023287,5]
[336632265,1724983856404,-500.0,0.00023287,5]
[336632266,1724983856413,-500.0,0.00023287,5]
[336632267,1724983856422,-636.04,0.00023287,5]
[336632268,1724983856433,-1566.77,0.00023287,5]
[336632269,1724983856443,-517.98,0.00023287,5]
[336632270,1724983856455,-500.0,0.00023287,5]
[336632271,1724983856466,-1831.81,0.00023287,5]
[336632272,1724983856477,-1072.33,0.00023287,5]
[336632273,1724983856487,-542.43,0.00023287,5]
[336632274,1724983856498,-1282.53,0.00023287,5]
[336632275,1724983856508,-743.43,0.00023287,5]
[336632276,1724983856519,-1221.57,0.00023287,5]
[336632277,1724983856528,-1461.81,0.00023287,5]
[336632278,1724983856538,-2207.85,0.00023287,5]
[336632279,1724983856553,-4413.6,0.00023287,5]
[336632280,1724983856563,-2474.75,0.00023287,5]
[336632281,1724983856572,-500.0,0.00023287,5]
[336632282,1724983856582,-500.0,0.00023287,5]
[336632283,1724983856592,-800.0,0.00023352,2]
[336632284,1724983856601,-654.326935,0.00023369,2]
[336632285,1724983856611,-823.0,0.00023495,2]
[336632286,1724983856620,-500.0,0.00023497,2]
[336632287,1724983856629,-918.8,0.000235,14]
[336632288,1724983856639,-600.0,0.00023517,2]
[336632289,1724983856650,-500.0,0.00023561,5]
[336632290,1724983856659,-500.0,0.00023561,5]
[336632291,1724983856668,-254.51308439,0.00023561,5]
[336632292,1724983856678,-829.52,0.00023561,5]
[336632293,1724983856688,-500.0,0.00023561,5]
[336632294,1724983856698,-718.95,0.00023561,5]
[336632295,1724983856709,-500.0,0.00023561,5]
[336632296,1724983856719,-500.0,0.00023561,5]
[336632297,1724983856730,-624.21,0.00023561,5]
[336632298,1724983856741,-811.43,0.00023561,5]
[336632299,1724983856751,-650.46,0.00023561,5]
[336632300,1724983856760,-674.29,0.00023561,5]
[336632301,1724983856769,-251.07759513,0.00023561,5]
[336632302,1724983856778,-2372.91,0.00023561,5]
[336632303,1724983856789,-7565.24,0.00023561,5]
[336632304,1724983856800,-544.68,0.00023561,5]
[336632305,1724983856809,-2711.47,0.00023561,5]
[336632306,1724983856818,-1810.15,0.00023561,5]
[336632307,1724983856827,-500.0,0.00023561,5]
[336632308,1724983856838,-500.0,0.00023561,5]
[336632309,1724983856848,-596.7,0.00023561,5]
[336632310,1724983856858,-732.32,0.00023561,5]
[336632311,1724983856867,-1028.9,0.00023561,5]
[336632312,1724983856877,-528.46,0.00023561,5]
[336632313,1724983856887,-624.43519366,0.00023561,5]
[336632314,1724983856896,-584.53,0.00023561,5]
[336632315,1724983856905,-558.86,0.00023561,5]
[336632316,1724983856915,-500.0,0.00023561,5]
[336632317,1724983856924,-1600.8,0.00023561,5]
[336632318,1724983856934,-514.67,0.00023561,5]
[336632319,1724983856943,-722.8,0.00023561,5]
[336632320,1724983856952,-500.0,0.00023561,5]
[336632321,1724983856961,-500.0,0.00023561,5]
[336632322,1724983856970,-749.96,0.00023561,5]
[336632323,1724983856980,-2936.91,0.00023561,5]
[336632324,1724983856989,-500.0,0.00023561,5]
[336632325,1724983856999,-538.9,0.00023561,5]
[336632326,1724983857008,-4606.99,0.00023561,5]
[336632327,1724983857017,-1984.15,0.00023561,5]
[336632328,1724983857027,-500.0,0.00023561,5]
[336632329,1724983857036,-500.0,0.00023561,5]
[336632330,1724983857046,-636.04,0.00023561,5]
[336632331,1724983857055,-1566.77,0.00023561,5]
[336632332,1724983857065,-517.98,0.00023561,5]
[336632333,1724983857074,-500.0,0.00023561,5]
[336632334,1724983857084,-1831.81,0.00023561,5]
[336632335,1724983857094,-1072.33,0.00023561,5]
[336632336,1724983857103,-542.43,0.00023561,5]
[336632337,1724983857112,-1282.53,0.00023561,5]
[336632338,1724983857123,-743.43,0.00023561,5]
[336632339,1724983857136,-1221.57,0.00023561,5]
[336632340,1724983857146,-1461.81,0.00023561,5]
[336632341,1724983857156,-2207.85,0.00023561,5]
[336632342,1724983857166,-4413.6,0.00023561,5]
[336632343,1724983857176,-2474.75,0.00023561,5]
[336632344,1724983857187,-576.43737603,0.00023561,5]
[336632345,1724983857198,-500.0,0.00023561,5]
[336632346,1724983857209,-600.0,0.00023583,2]
[336632347,1724983857220,-2500.0,0.00023589,2]
[336632348,1724983857231,-500.0,0.00023604,2]
[336632349,1724983857241,-600.0,0.00023615,2]
[336632350,1724983857252,-500.0,0.00023619,2]
[336632351,1724983857261,-500.0,0.00023625,2]
[336632352,1724983857271,-800.0,0.0002363,2]
[336632353,1724983857283,-500.0,0.0002368,2]
[336632354,1724983857294,-600.0,0.00023776,2]
[336632355,1724983857305,-6349.3145955,0.000238,2]
[336632364,1724984079741,159.4361228,0.00014247,2]
[336632378,1724984719912,159.436109,0.00014247,2]
[336632390,1724984949332,-282.88056037,0.00017208,2]
[336632421,1724985032009,-1530.295078,0.00017153,2]
[336632422,1724985032019,-463.65147377,0.00017208,2]
[336632423,1724985032032,-866.74992986,0.00017208,2]
[336632424,1724985032042,-361.2592487,0.0001734,2]
[336632425,1724985032052,-1297.94980036,0.00017597,2]
[336632450,1724985038160,-1132.3872544,0.00017597,2]
[336632451,1724985038172,-376.87539093,0.00017597,2]
[336632452,1724985038183,-192.78755431,0.00017597,2]
[336632453,1724985038192,-300.0,0.00017693,2]
[336632454,1724985038202,-300.0,0.00017693,2]
[336632455,1724985038211,-414.92841715,0.00017694,2]
[336632456,1724985038265,-16201.78044455,0.00017694,2]
[336632457,1724985038274,-585.06344527,0.00017696,2]
[336632458,1724985038284,-167.1689699,0.00018303,2]
[336632459,1724985038293,-354.159227,0.0001863,2]
[336632460,1724985038302,-4465.0281016,0.00019,2]
[336632461,1724985038312,-506.5594966,0.00019177,2]
[336632462,1724985038321,-505.12030199,0.00019178,2]
[336632463,1724985038330,-500.0,0.00019178,2]
[336632464,1724985038340,-582.75457271,0.00019178,2]
[336632465,1724985038349,-504.29429317,0.00019178,2]
[336632466,1724985038358,-500.0,0.00019178,2]
[336632467,1724985038367,-502.71315218,0.00019178,2]
[336632468,1724985038376,-505.40635678,0.00019178,2]
[336632469,1724985038386,-503.46079934,0.00019178,2]
[336632470,1724985038395,-504.17445789,0.00019178,2]
[336632471,1724985038405,-200.0,0.00019178,2]
[336632472,1724985038415,-502.45725717,0.00019178,2]
[336632473,1724985038424,-504.71622997,0.00019178,2]
[336632474,1724985038433,-501.83958934,0.00019178,2]
[336632475,1724985038442,-502.49528309,0.00019178,2]
[336632477,1724985038451,-512.70413669,0.00019178,2]
[336632478,1724985038461,-503.75714057,0.00019178,2]
[336632480,1724985038471,-500.0,0.00019178,2]
[336632482,1724985038489,-500.0,0.00019178,2]
[336632483,1724985038498,-503.13706937,0.00019178,2]
[336632485,1724985038507,-478.86231771,0.00019178,2]
[336632487,1724985038519,-572.61816796,0.00019178,2]
[336632489,1724985038528,-500.0,0.00019178,2]
[336632490,1724985038537,-501.57434355,0.00019178,2]
[336632492,1724985038546,-500.0,0.00019178,2]
[336632494,1724985038556,-503.62800059,0.00019178,2]
[336632495,1724985038565,-500.0,0.00019178,2]
[336632496,1724985038574,-502.96019169,0.00019178,2]
[336632497,1724985038584,-464.77312092,0.00019178,2]
[336632498,1724985038594,-500.81970804,0.00019178,2]
[336632499,1724985038603,-503.24147757,0.00019178,2]
[336632500,1724985038613,-503.88165145,0.00019178,2]
[336632501,1724985038622,-521.10881276,0.00019178,2]
[336632502,1724985038632,-502.16297863,0.00019178,2]
[336632503,1724985038641,-496.98980546,0.00019178,2]
[336632505,1724985038651,-501.83575213,0.00019178,2]
[336632506,1724985038660,-309.0003961,0.00019178,2]
[336632507,1724985038669,-515.00243942,0.00019178,2]
[336632508,1724985038678,-500.0,0.00019178,2]
[336632509,1724985038688,-536.45468351,0.00019178,2]
[336632510,1724985038698,-501.11742612,0.00019178,2]
[336632511,1724985038707,-569.973228,0.00019178,2]
[336632512,1724985038716,-500.0,0.00019178,2]
[336632513,1724985038728,-500.0,0.00019178,2]
[336632514,1724985038737,-600.03,0.00019178,2]
[336632515,1724985038747,-500.0,0.00019178,2]
[336632516,1724985038757,-500.0,0.00019178,2]
[336632517,1724985038767,-500.0,0.00019178,2]
[336632518,1724985038776,-500.0,0.00019178,2]
[336632519,1724985038785,-500.0,0.00019178,2]
[336632520,1724985038795,-500.0,0.00019178,2]
[336632521,1724985038805,-518.49,0.00019178,2]
[336632522,1724985038814,-500.0,0.00019178,2]
[336632523,1724985038825,-500.0,0.00019178,2]
[336632524,1724985038834,-500.0,0.00019178,2]
[336632525,1724985038844,-500.0,0.00019178,2]
[336632526,1724985038854,-500.0,0.00019178,2]
[336632527,1724985038863,-500.0,0.00019178,2]
[336632528,1724985038873,-500.0,0.00019178,2]
[336632529,1724985038883,-500.0,0.00019178,2]
[336632530,1724985038892,-500.0,0.00019178,2]
[336632531,1724985038903,-500.0,0.00019178,2]
[336632533,1724985038912,-500.0,0.00019178,2]
[336632534,1724985038922,-509.23,0.00019178,2]
[336632535,1724985038931,-500.0,0.00019178,2]
[336632536,1724985038942,-500.0,0.00019178,2]
[336632537,1724985038952,-500.0,0.00019178,2]
[336632539,1724985038962,-507.52560145,0.00019178,2]
[336632540,1724985038971,-1439.09,0.00019178,2]
[336632541,1724985038985,-507.73779864,0.00019178,2]
[336632543,1724985038995,-500.0,0.00019178,2]
[336632545,1724985039004,-377.73762256,0.00019178,2]
[336632547,1724985039014,-1551.79,0.00019178,2]
[336632549,1724985039023,-500.0,0.00019178,2]
[336632550,1724985039033,-500.0,0.00019178,2]
[336632552,1724985039042,-504.27959038,0.00019178,2]
[336632554,1724985039052,-500.0,0.00019178,2]
[336632556,1724985039064,-500.0,0.00019178,2]
[336632557,1724985039074,-500.0,0.00019178,2]
[336632558,1724985039083,-500.0,0.00019178,2]
[336632559,1724985039092,-388.02035123,0.00019178,2]
[336632560,1724985039102,-500.0,0.00019178,2]
[336632561,1724985039112,-1161.98,0.00019178,2]
[336632562,1724985039122,-500.0,0.00019178,2]
[336632563,1724985039133,-500.0,0.00019178,2]
[336632564,1724985039144,-500.0,0.00019178,2]
[336632565,1724985039154,-500.0,0.00019178,2]
[336632566,1724985039165,-500.0,0.00019178,2]
[336632567,1724985039175,-500.0,0.00019178,2]
[336632568,1724985039184,-500.0,0.00019178,2]
[336632569,1724985039194,-500.0,0.00019178,2]
[336632570,1724985039204,-643.25,0.00019178,2]
[336632571,1724985039214,-500.0,0.00019178,2]
[336632572,1724985039225,-500.0,0.00019178,2]
[336632573,1724985039235,-500.0,0.00019178,2]
[336632574,1724985039244,-500.0,0.00019178,2]
[336632575,1724985039254,-500.0,0.00019178,2]
[336632576,1724985039263,-500.0,0.00019178,2]
[336632577,1724985039272,-505.76660276,0.00019178,2]
[336632578,1724985039281,-500.0,0.00019178,2]
[336632579,1724985039291,-1003.4,0.00019178,2]
[336632580,1724985039301,-500.0,0.00019178,2]
[336632581,1724985039310,-500.0,0.00019178,2]
[336632582,1724985039318,-500.0,0.00019178,2]
[336632583,1724985039328,-214.51984154,0.00019178,2]
[336632584,1724985039337,-505.62927174,0.00019178,2]
[336632585,1724985039347,-500.0,0.00019178,2]
[336632586,1724985039356,-500.0,0.00019178,2]
[336632587,1724985039365,-500.0,0.00019178,2]
[336632588,1724985039374,-500.0,0.00019178,2]
[336632589,1724985039385,-504.38400273,0.00019178,2]
[336632590,1724985039395,-500.0,0.00019178,2]
[336632591,1724985039405,-500.0,0.00019178,2]
[336632592,1724985039414,-500.0,0.00019178,2]
[336632593,1724985039423,-500.0,0.00019178,2]
[336632594,1724985039432,-500.0,0.00019178,2]
[336632595,1724985039442,-500.0,0.00019178,2]
[336632596,1724985039453,-500.0,0.00019178,2]
[336632597,1724985039462,-500.0,0.00019178,2]
[336632598,1724985039471,-500.0,0.00019178,2]
[336632599,1724985039481,-500.0,0.00019178,2]
[336632601,1724985039490,-500.0,0.00019178,2]
[336632602,1724985039500,-526.98782588,0.00019178,2]
[336632603,1724985039510,-500.0,0.00019178,2]
[336632604,1724985039522,-1695.59,0.00019178,2]
[336632605,1724985039531,-324.93333849,0.00019178,2]
[336632606,1724985039541,-1157.42,0.00019178,2]
[336632607,1724985039550,-2823.37,0.00019178,2]
[336632608,1724985039560,-500.0,0.00019178,2]
[336632609,1724985039570,-502.27304236,0.00019178,2]
[336632610,1724985039579,-500.0,0.00019178,2]
[336632611,1724985039588,-929.65,0.00019178,2]
[336632612,1724985039599,-500.0,0.00019178,2]
[336632613,1724985039608,-344.67687751,0.00019178,2]
[336632614,1724985039617,-500.0,0.00019178,2]
[336632615,1724985039626,-500.0,0.00019178,2]
[336632616,1724985039636,-500.0,0.00019178,2]
[336632617,1724985039646,-500.0,0.00019178,2]
[336632618,1724985039656,-479.61807433,0.00019178,2]
[336632619,1724985039665,-2574.6,0.00019178,2]
[336632620,1724985039675,-500.0,0.00019178,2]
[336632621,1724985039684,-1181.31,0.00019178,2]
[336632622,1724985039695,-748.14,0.00019178,2]
[336632623,1724985039704,-480.88679011,0.00019178,2]
[336632624,1724985039714,-500.0,0.00019178,2]
[336632625,1724985039723,-500.0,0.00019178,2]
[336632626,1724985039733,-625.53,0.00019178,2]
[336632627,1724985039742,-500.0,0.00019178,2]
[336632628,1724985039751,-500.0,0.00019178,2]
[336632629,1724985039760,-1287.91,0.00019178,2]
[336632630,1724985039769,-500.0,0.00019178,2]
[336632631,1724985039778,-500.0,0.00019178,2]
[336632632,1724985039787,-852.72,0.00019178,2]
[336632633,1724985039798,-712.59,0.00019178,2]
[336632634,1724985039807,-500.0,0.00019178,2]
[336632635,1724985039816,-500.0,0.00019178,2]
[336632636,1724985039826,-500.0,0.00019178,2]
[336632637,1724985039835,-1443.6,0.00019178,2]
[336632638,1724985039845,-5238.51,0.00019178,2]
[336632639,1724985039854,-500.0,0.00019178,2]
[336632640,1724985039863,-626.84049778,0.00019178,2]
[336632641,1724985039873,-420.0,0.00019311,2]
[336632642,1724985039882,-500.0,0.00019452,2]
[336632643,1724985039892,-200.0,0.00019452,2]
[336632645,1724985039902,-500.0,0.00019452,2]
[336632647,1724985039911,-500.0,0.00019452,2]
[336632649,1724985039921,-500.0,0.00019452,2]
[336632650,1724985039930,-500.0,0.00019452,2]
[336632652,1724985039939,-462.61764631,0.00019452,2]
[336632655,1724985039954,-37.38235369,0.00019452,2]
[336632656,1724985039963,-500.0,0.00019452,2]
[336632657,1724985039972,-600.03,0.00019452,2]
[336632658,1724985039982,-500.0,0.00019452,2]
[336632659,1724985039991,-500.0,0.00019452,2]
[336632660,1724985040000,-500.0,0.00019452,2]
[336632661,1724985040009,-494.38682142,0.00019452,2]
[336632663,1724985040019,-518.49,0.00019452,2]
[336632664,1724985040028,-500.0,0.00019452,2]
[336632665,1724985040037,-500.0,0.00019452,2]
[336632666,1724985040047,-500.0,0.00019452,2]
[336632667,1724985040057,-500.0,0.00019452,2]
[336632668,1724985040066,-457.75614847,0.00019452,2]
[336632669,1724985040076,-500.0,0.00019452,2]
[336632670,1724985040085,-500.0,0.00019452,2]
[336632671,1724985040094,-509.23,0.00019452,2]
[336632672,1724985040104,-573.89684204,0.00019452,2]
[336632673,1724985040113,-500.0,0.00019452,2]
[336632674,1724985040122,-500.0,0.00019452,2]
[336632675,1724985040131,-1439.09,0.00019452,2]
[336632676,1724985040140,-500.0,0.00019452,2]
[336632678,1724985040150,-1551.79,0.00019452,2]
[336632679,1724985040160,-500.0,0.00019452,2]
[336632680,1724985040170,-500.0,0.00019452,2]
[336632681,1724985040178,-500.0,0.00019452,2]
[336632682,1724985040188,-1161.98,0.00019452,2]
[336632683,1724985040197,-500.0,0.00019452,2]
[336632684,1724985040206,-500.0,0.00019452,2]
[336632685,1724985040215,-500.0,0.00019452,2]
[336632686,1724985040224,-500.0,0.00019452,2]
[336632687,1724985040234,-500.0,0.00019452,2]
[336632688,1724985040243,-500.0,0.00019452,2]
[336632689,1724985040253,-643.25,0.00019452,2]
[336632690,1724985040263,-500.0,0.00019452,2]
[336632692,1724985040272,-500.0,0.00019452,2]
[336632694,1724985040281,-500.0,0.00019452,2]
[336632695,1724985040291,-500.0,0.00019452,2]
[336632696,1724985040300,-1003.4,0.00019452,2]
[336632697,1724985040310,-500.0,0.00019452,2]
[336632698,1724985040319,-500.0,0.00019452,2]
[336632699,1724985040328,-566.92977975,0.00019452,2]
[336632700,1724985040338,-500.0,0.00019452,2]
[336632701,1724985040348,-500.0,0.00019452,2]
[336632702,1724985040357,-192.31440948,0.00019452,2]
[336632703,1724985040369,-307.68559052,0.00019452,2]
[336632704,1724985040379,-2851.65851509,0.00019452,2]
[336632705,1724985040389,-500.0,0.00019452,2]
[336632706,1724985040398,-500.0,0.00019452,2]
[336632707,1724985040408,-500.0,0.00019452,2]
[336632708,1724985040417,-500.0,0.00019452,2]
[336632709,1724985040427,-500.0,0.00019452,2]
[336632710,1724985040437,-500.0,0.00019452,2]
[336632711,1724985040448,-500.0,0.00019452,2]
[336632712,1724985040457,-500.0,0.00019452,2]
[336632713,1724985040467,-1695.59,0.00019452,2]
[336632714,1724985040478,-1157.42,0.00019452,2]
[336632715,1724985040487,-2823.37,0.00019452,2]
[336632716,1724985040497,-500.0,0.00019452,2]
[336632717,1724985040508,-500.0,0.00019452,2]
[336632718,1724985040522,-929.65,0.00019452,2]
[336632719,1724985040534,-500.0,0.00019452,2]
[336632720,1724985040544,-500.0,0.00019452,2]
[336632721,1724985040556,-500.0,0.00019452,2]
[336632722,1724985040566,-500.0,0.00019452,2]
[336632723,1724985040575,-257.46248958,0.00019452,2]
[336632724,1724985040584,-2574.6,0.00019452,2]
[336632725,1724985040595,-614.23557563,0.00019452,2]
[336632726,1724985040606,-1181.31,0.00019452,2]
[336632727,1724985040615,-748.14,0.00019452,2]
[336632728,1724985040625,-500.0,0.00019452,2]
[336632729,1724985040634,-500.0,0.00019452,2]
[336632730,1724985040645,-625.53,0.00019452,2]
[336632731,1724985040655,-500.0,0.00019452,2]
[336632732,1724985040665,-500.0,0.00019452,2]
[336632733,1724985040677,-1287.91,0.00019452,2]
[336632734,1724985040686,-500.0,0.00019452,2]
[336632735,1724985040695,-500.0,0.00019452,2]